fUST/lending_fUST_20250724
["ID","MTS","AMOUNT","RATE_DAILY","PERIOD"]
[374449059,1753305038721,-666.0,0.00019178,2]
[374449060,1753305038735,-460.0,0.00019452,2]
[374449061,1753305038744,-460.0,0.00019452,2]
[374449062,1753305038754,-575.3,0.00019452,2]
[374449063,1753305038763,-460.0,0.00019452,2]
[374449064,1753305038773,-460.0,0.00019452,2]
[374449065,1753305038782,-460.0,0.00019452,2]
[374449067,1753305038791,-460.0,0.00019452,2]
[374449068,1753305038801,-327.10498551,0.00019452,2]
[374449070,1753305038813,-272.28501449,0.00019452,2]
[374449072,1753305038822,-460.0,0.00019452,2]
[374449074,1753305038831,-460.0,0.00019648,2]
[374449076,1753305038839,-391.33105799,0.00019648,2]
[374449078,1753305038851,-68.66894201,0.00019648,2]
[374449079,1753305038860,-891.21,0.00019648,2]
[374449080,1753305038869,-95.72809946,0.00019648,2]
[374449082,1753305038882,-364.27190054,0.00019648,2]
[374449083,1753305038892,-460.0,0.00019648,2]
[374449086,1753305038902,-155.0,0.00019648,2]
[374449088,1753305038911,-686.53,0.00019648,2]
[374449090,1753305038920,-460.0,0.00019648,2]
[374449092,1753305038930,-318.3240979,0.00019648,2]
[374449094,1753305038939,-460.0,0.00019648,2]
[374449096,1753305038948,-366.06269659,0.00019648,2]
[374449098,1753305038959,-93.93730341,0.00019648,2]
[374449100,1753305038972,-460.0,0.00019648,2]
[374449102,1753305038981,-460.0,0.00019648,2]
[374449104,1753305038991,-57.36818959,0.00019648,2]
[374449134,1753305040770,-402.63181041,0.00019648,2]
[374449136,1753305040780,-460.0,0.00019648,2]
[374449137,1753305040790,-460.0,0.00019648,2]
[374449140,1753305040800,-460.0,0.00019648,2]
[374449142,1753305040810,-460.0,0.00019649,2]
[374449144,1753305040819,-460.0,0.00019649,2]
[374449145,1753305040829,-460.0,0.00019649,2]
[374449147,1753305040838,-238.96923298,0.00019649,2]
[374449150,1753305040848,-460.0,0.00019649,2]
[374449151,1753305040857,-460.0,0.00019649,2]
[374449154,1753305040867,-460.0,0.00019649,2]
[374449155,1753305040877,-460.0,0.00019649,2]
[374449158,1753305040887,-460.0,0.00019649,2]
[374449160,1753305040896,-501.54383892,0.00019649,2]
[374449161,1753305040904,-460.0,0.00019649,2]
[374449163,1753305040914,-460.0,0.00019649,2]
[374449165,1753305040924,-460.0,0.00019649,2]
[374449167,1753305040933,-460.0,0.00019649,2]
[374449170,1753305040943,-460.0,0.00019649,2]
[374449171,1753305040953,-460.0,0.00019649,2]
[374449174,1753305040965,-460.0,0.00019649,2]
[374449176,1753305040974,-460.0,0.00019649,2]
[374449177,1753305040983,-460.0,0.00019649,2]
[374449180,1753305040993,-526.04499751,0.00019649,2]
[374449181,1753305041003,-1023.03353902,0.00019649,2]
[374449184,1753305041013,-460.0,0.00019649,2]
[374449185,1753305041023,-460.0,0.00019649,2]
[374449188,1753305041033,-460.0,0.00019649,2]
[374449189,1753305041042,-460.0,0.00019649,2]
[374449191,1753305041051,-460.0,0.00019649,2]
[374449193,1753305041062,-463.50797996,0.00019649,2]
[374449196,1753305041072,-460.0,0.00019649,2]
[374449198,1753305041081,-460.0,0.00019649,2]
[374449200,1753305041091,-460.0,0.00019649,2]
[374449201,1753305041100,-460.0,0.00019649,2]
[374449203,1753305041109,-460.0,0.00019649,2]
[374449206,1753305041119,-460.0,0.00019649,2]
[374449208,1753305041128,-460.0,0.00019649,2]
[374449210,1753305041137,-460.0,0.00019649,2]
[374449212,1753305041147,-460.40577546,0.00019649,2]
[374449214,1753305041156,-268.50434683,0.00019649,2]
[374449226,1753305041269,-191.49565317,0.00019649,2]
[374449228,1753305041279,-139.98721473,0.00019649,2]
[374449231,1753305041292,-320.01278527,0.00019649,2]
[374449233,1753305041302,-111.86714983,0.00019649,2]
[374449235,1753305041313,-108.31585857,0.00019649,2]
[374449237,1753305041323,-460.0,0.00019649,2]
[374449239,1753305041332,-460.0,0.00019649,2]
[374449241,1753305041341,-1581.5,0.00019649,2]
[374449243,1753305041350,-460.0,0.00019649,2]
[374449245,1753305041360,-460.0,0.00019649,2]
[374449247,1753305041373,-460.0,0.00019649,2]
[374449248,1753305041382,-460.0,0.00019649,2]
[374449251,1753305041392,-460.0,0.00019649,2]
[374449253,1753305041402,-460.0,0.00019649,2]
[374449255,1753305041412,-460.0,0.00019649,2]
[374449256,1753305041423,-460.0,0.00019649,2]
[374449258,1753305041432,-460.0,0.00019649,2]
[374449260,1753305041442,-460.0,0.00019649,2]
[374449262,1753305041456,-460.0,0.00019649,2]
[374449264,1753305041466,-460.0,0.00019649,2]
[374449266,1753305041477,-460.0,0.00019649,2]
[374449269,1753305041489,-460.0,0.00019649,2]
[374449270,1753305041499,-460.0,0.00019649,2]
[374449272,1753305041509,-460.0,0.00019649,2]
[374449274,1753305041518,-460.0,0.00019649,2]
[374449276,1753305041527,-460.0,0.00019649,2]
[374449278,1753305041536,-460.0,0.00019649,2]
[374449280,1753305041546,-460.0,0.00019649,2]
[374449282,1753305041555,-460.0,0.00019649,2]
[374449284,1753305041564,-460.0,0.00019649,2]
[374449286,1753305041574,-477.11,0.00019649,2]
[374449288,1753305041583,-460.0,0.00019649,2]
[374449290,1753305041593,-460.0,0.00019649,2]
[374449292,1753305041603,-1064.07,0.00019649,2]
[374449294,1753305041613,-460.0,0.00019649,2]
[374449296,1753305041624,-460.0,0.00019649,2]
[374449298,1753305041635,-460.0,0.00019649,2]
[374449300,1753305041645,-460.0,0.00019649,2]
[374449302,1753305041654,-460.0,0.00019649,2]
[374449304,1753305041664,-460.0,0.0001965,2]
[374449306,1753305041673,-460.0,0.0001965,2]
[374449308,1753305041682,-460.0,0.0001965,2]
[374449311,1753305041692,-401.29539484,0.0001965,2]
[374449312,1753305041701,-460.0,0.0001965,2]
[374449314,1753305041711,-460.0,0.0001965,2]
[374449317,1753305041725,-460.0,0.0001965,2]
[374449318,1753305041734,-460.0,0.0001965,2]
[374449320,1753305041743,-460.0,0.0001965,2]
[374449322,1753305041752,-534.1817611,0.0001965,2]
[374449324,1753305041763,-460.0,0.0001965,2]
[374449326,1753305041773,-460.0,0.0001965,2]
[374449328,1753305041783,-460.0,0.0001965,2]
[374449330,1753305041793,-339.98630756,0.0001965,2]
[374449332,1753305041804,-460.0,0.0001965,2]
[374449334,1753305041814,-237.70725239,0.0001965,2]
[374449337,1753305041825,-460.0,0.0001965,2]
[374449339,1753305041835,-460.0,0.0001965,2]
[374449340,1753305041845,-460.0,0.0001965,2]
[374449343,1753305041855,-460.0,0.00019652,2]
[374449345,1753305041865,-460.0,0.00019652,2]
[374449346,1753305041874,-460.0,0.00019652,2]
[374449348,1753305041883,-460.81821028,0.00019652,2]
[374449350,1753305041892,-509.02346839,0.00019652,2]
[374449352,1753305041901,-543.56199522,0.00019652,2]
[374449354,1753305041911,-460.0,0.00019652,2]
[374449356,1753305041920,-214.96422526,0.00019652,2]
[374449358,1753305041929,-460.0,0.00019652,2]
[374449360,1753305041938,-460.0,0.00019652,2]
[374449362,1753305041947,-157.42474251,0.00019652,2]
[374449364,1753305041956,-483.72,0.00019652,2]
[374449366,1753305041966,-460.0,0.00019652,2]
[374449368,1753305041975,-460.0,0.00019652,2]
[374449370,1753305041985,-460.0,0.00019652,2]
[374449372,1753305041994,-460.0,0.00019652,2]
[374449374,1753305042003,-460.0,0.00019652,2]
[374449376,1753305042013,-460.0,0.00019652,2]
[374449378,1753305042022,-460.0,0.00019652,2]
[374449380,1753305042032,-460.0,0.00019652,2]
[374449382,1753305042041,-460.0,0.00019652,2]
[374449384,1753305042051,-460.0,0.00019652,2]
[374449386,1753305042060,-465.7251263,0.00019652,2]
[374449388,1753305042070,-164.46597009,0.00019653,2]
[374449390,1753305042080,-1156.51,0.00019653,2]
[374449392,1753305042089,-460.0,0.00019653,2]
[374449394,1753305042098,-608.29,0.00019653,2]
[374449396,1753305042107,-460.0,0.00019653,2]
[374449398,1753305042116,-753.03,0.00019653,2]
[374449400,1753305042125,-460.0,0.00019655,2]
[374449402,1753305042134,-808.49369971,0.00019685,2]
[374449404,1753305042143,-165.67123057,0.00019726,2]
[374449406,1753305042152,-460.0,0.00019726,2]
[374449408,1753305042161,-460.0,0.00019726,2]
[374449410,1753305042171,-599.39,0.00019726,2]
[374449412,1753305042180,-230.75,0.00019916,3]
[374449414,1753305042189,-692.28,0.00019916,3]
[374449416,1753305042198,-461.5,0.00019917,3]
[374449418,1753305042208,-891.21,0.00019922,2]
[374449420,1753305042218,-460.0,0.00019922,2]
[374449422,1753305042227,-460.0,0.00019922,2]
[374449424,1753305042237,-686.53,0.00019922,2]
[374449426,1753305042246,-460.0,0.00019922,2]
[374449428,1753305042255,-460.0,0.00019922,2]
[374449430,1753305042264,-460.0,0.00019922,2]
[374449431,1753305042273,-460.0,0.00019922,2]
[374449433,1753305042282,-460.0,0.00019922,2]
[374449435,1753305042291,-460.0,0.00019922,2]
[374449437,1753305042301,-460.0,0.00019922,2]
[374449439,1753305042311,-460.0,0.00019922,2]
[374449441,1753305042320,-460.0,0.00019923,2]
[374449443,1753305042330,-460.0,0.00019923,2]
[374449445,1753305042339,-460.0,0.00019923,2]
[374449447,1753305042349,-460.0,0.00019923,2]
[374449449,1753305042358,-460.0,0.00019923,2]
[374449451,1753305042368,-460.0,0.00019923,2]
[374449453,1753305042378,-360.74581039,0.00019923,2]
[374449455,1753305042388,-460.0,0.00019923,2]
[374449457,1753305042397,-460.0,0.00019923,2]
[374449459,1753305042408,-460.0,0.00019923,2]
[374449461,1753305042422,-460.0,0.00019923,2]
[374449463,1753305042431,-460.0,0.00019923,2]
[374449465,1753305042440,-460.0,0.00019923,2]
[374449467,1753305042450,-460.0,0.00019923,2]
[374449469,1753305042459,-1581.5,0.00019923,2]
[374449471,1753305042470,-460.0,0.00019923,2]
[374449473,1753305042479,-460.0,0.00019923,2]
[374449475,1753305042488,-536.96689959,0.00019923,2]
[374449477,1753305042497,-460.0,0.00019923,2]
[374449478,1753305042507,-460.0,0.00019923,2]
[374449480,1753305042516,-460.0,0.00019923,2]
[374449482,1753305042525,-460.0,0.00019923,2]
[374449484,1753305042534,-460.0,0.00019923,2]
[374449487,1753305042544,-531.89138927,0.00019923,2]
[374449488,1753305042553,-460.0,0.00019923,2]
[374449490,1753305042563,-460.0,0.00019923,2]
[374449492,1753305042572,-1064.07,0.00019923,2]
[374449494,1753305042581,-460.0,0.00019923,2]
[374449496,1753305042591,-460.0,0.00019923,2]
[374449498,1753305042600,-460.0,0.00019923,2]
[374449500,1753305042610,-460.0,0.00019924,2]
[374449502,1753305042620,-460.0,0.00019924,2]
[374449504,1753305042629,-460.0,0.00019924,2]
[374449507,1753305042638,-460.0,0.00019924,2]
[374449509,1753305042648,-460.0,0.00019924,2]
[374449511,1753305042658,-460.0,0.00019924,2]
[374449512,1753305042667,-460.0,0.00019924,2]
[374449514,1753305042677,-460.0,0.00019924,2]
[374449516,1753305042686,-460.0,0.00019924,2]
[374449518,1753305042695,-460.0,0.00019924,2]
[374449520,1753305042705,-230.69504017,0.00019926,2]
[374449522,1753305042714,-460.0,0.00019926,2]
[374449524,1753305042727,-460.0,0.00019926,2]
[374449526,1753305042737,-460.0,0.00019926,2]
[374449528,1753305042746,-1030.65473705,0.00019927,2]
[374449623,1753305043646,-286.303,0.00019649,2]
[374449626,1753305043658,-100.807,0.00019649,2]
[374449628,1753305043667,-125.85526295,0.00019927,2]
[374449630,1753305043676,-281.10273705,0.00019927,2]
[374449632,1753305043687,-178.89726295,0.00019927,2]
[374449634,1753305043696,-144.94273705,0.00019927,2]
[374449636,1753305043712,-315.05726295,0.00019927,2]
[374449638,1753305043724,-608.29,0.00019927,2]
[374449640,1753305043734,-470.68,0.00019927,2]
[374449642,1753305043743,-501.58,0.00019927,2]
[374449644,1753305043752,-460.0,0.00019927,2]
[374449646,1753305043763,-753.03,0.00019927,2]
[374449649,1753305043772,-460.0,0.00019929,2]
[374449652,1753305043782,-179.78425889,0.00019988,2]
[374449654,1753305043791,-1303.4930677,0.0002,2]
[374449656,1753305043802,-150.0,0.0002002,2]
[374449658,1753305043813,-500.0,0.00020061,2]
[374449660,1753305043823,-500.0,0.00020076,2]
[374449662,1753305043832,-500.0,0.00020076,2]
[374449664,1753305043842,-500.0,0.00020148,2]
[374449666,1753305043851,-500.0,0.00020148,2]
[374449668,1753305043860,-500.0,0.00020148,2]
[374449670,1753305043870,-253.459781,0.00020187,2]
[374449672,1753305043879,-891.21,0.00020196,2]
[374449674,1753305043888,-460.0,0.00020196,2]
[374449676,1753305043897,-460.0,0.00020196,2]
[374449678,1753305043906,-686.53,0.00020196,2]
[374449680,1753305043915,-460.0,0.00020196,2]
[374449682,1753305043924,-460.0,0.00020196,2]
[374449684,1753305043933,-460.0,0.00020196,2]
[374449686,1753305043942,-460.0,0.00020196,2]
[374449688,1753305043951,-460.0,0.00020196,2]
[374449690,1753305043960,-460.0,0.00020197,2]
[374449692,1753305043970,-503.0238588,0.00020197,2]
[374449694,1753305043979,-460.0,0.00020197,2]
[374449696,1753305043988,-540.0,0.00020197,2]
[374449698,1753305043997,-460.0,0.00020197,2]
[374449700,1753305044007,-460.0,0.00020197,2]
[374449702,1753305044016,-518.15,0.00020197,2]
[374449704,1753305044024,-460.0,0.00020197,2]
[374449706,1753305044034,-1581.5,0.00020197,2]
[374449708,1753305044043,-460.0,0.00020197,2]
[374449709,1753305044052,-460.0,0.00020197,2]
[374449711,1753305044061,-460.0,0.00020197,2]
[374449713,1753305044070,-508.25,0.00020197,2]
[374449715,1753305044079,-460.0,0.00020197,2]
[374449717,1753305044088,-460.0,0.00020197,2]
[374449719,1753305044098,-460.0,0.00020197,2]
[374449734,1753305044211,-1064.07,0.00020197,2]
[374449736,1753305044244,-460.0,0.00020197,2]
[374449738,1753305044255,-491.0,0.00020197,2]
[374449741,1753305044264,-460.0,0.00020198,2]
[374449743,1753305044274,-460.0,0.00020198,2]
[374449745,1753305044283,-460.0,0.00020198,2]
[374449746,1753305044293,-460.0,0.00020198,2]
[374449748,1753305044303,-460.0,0.00020198,2]
[374449751,1753305044313,-460.0,0.00020198,2]
[374449752,1753305044322,-460.0,0.00020198,2]
[374449754,1753305044332,-497.74,0.00020198,2]
[374449756,1753305044342,-460.0,0.000202,2]
[374449758,1753305044351,-460.0,0.000202,2]
[374449760,1753305044361,-1156.51,0.00020201,2]
[374449761,1753305044371,-460.0,0.00020201,2]
[374449762,1753305044380,-460.0,0.00020201,2]
[374449763,1753305044389,-608.29,0.00020201,2]
[374449764,1753305044399,-470.68,0.00020201,2]
[374449765,1753305044410,-501.58,0.00020201,2]
[374449766,1753305044419,-460.0,0.00020201,2]
[374449767,1753305044428,-753.03,0.00020201,2]
[374449768,1753305044437,-460.0,0.00020203,2]
[374449769,1753305044446,-212.71675304,0.00020293,2]
[374449770,1753305044456,-160.0,0.00020327,2]
[374449771,1753305044465,-891.21,0.0002047,2]
[374449772,1753305044476,-460.0,0.0002047,2]
[374449773,1753305044486,-460.0,0.0002047,2]
[374449774,1753305044495,-686.53,0.0002047,2]
[374449775,1753305044505,-460.0,0.0002047,2]
[374449776,1753305044514,-460.0,0.0002047,2]
[374449777,1753305044523,-460.0,0.0002047,2]
[374449778,1753305044532,-460.0,0.0002047,2]
[374449779,1753305044541,-460.0,0.0002047,2]
[374449780,1753305044551,-460.0,0.00020471,2]
[374449781,1753305044560,-502.56,0.00020471,2]
[374449782,1753305044570,-460.0,0.00020471,2]
[374449783,1753305044579,-460.0,0.00020471,2]
[374449784,1753305044588,-1581.5,0.00020471,2]
[374449785,1753305044597,-460.0,0.00020471,2]
[374449786,1753305044606,-460.0,0.00020471,2]
[374449787,1753305044615,-460.0,0.00020471,2]
[374449788,1753305044625,-460.0,0.00020471,2]
[374449790,1753305044634,-460.0,0.00020471,2]
[374449792,1753305044643,-1064.07,0.00020471,2]
[374449793,1753305044653,-460.0,0.00020471,2]
[374449795,1753305044662,-460.0,0.00020472,2]
[374449797,1753305044671,-585.2,0.00020472,2]
[374449799,1753305044681,-460.0,0.00020472,2]
[374449801,1753305044690,-460.0,0.00020472,2]
[374449803,1753305044699,-460.0,0.00020472,2]
[374449805,1753305044708,-460.0,0.00020472,2]
[374449807,1753305044719,-460.0,0.00020474,2]
[374449809,1753305044731,-460.0,0.00020474,2]
[374449811,1753305044741,-1156.51,0.00020475,2]
[374449813,1753305044750,-460.0,0.00020475,2]
[374449815,1753305044759,-608.29,0.00020475,2]
[374449817,1753305044769,-470.68,0.00020475,2]
[374449819,1753305044778,-501.58,0.00020475,2]
[374449821,1753305044787,-460.0,0.00020475,2]
[374449823,1753305044797,-753.03,0.00020475,2]
[374449825,1753305044806,-460.0,0.00020477,2]
[374449827,1753305044816,-420.0,0.00020567,2]
[374449829,1753305044825,-1680.0,0.00020568,2]
[374449831,1753305044834,-808.49369971,0.00020602,2]
[374449833,1753305044843,-500.0,0.00020609,2]
[374449835,1753305044853,-1000.0,0.00020624,2]
[374449837,1753305044863,-526.15909479,0.00020665,2]
[374449839,1753305044872,-214.67886746,0.00020665,2]
[374449841,1753305044881,-160.0,0.00020665,2]
[374449843,1753305044890,-12622.36869388,0.00020665,2]
[374449845,1753305044899,-160.0,0.00020665,2]
[374449847,1753305044908,-160.0,0.00020665,2]
[374449849,1753305044917,-231.11583447,0.00020665,2]
[374449851,1753305044926,-160.0,0.00020665,2]
[374449852,1753305044935,-215.84326551,0.00020665,2]
[374449854,1753305044944,-160.0,0.00020665,2]
[374449856,1753305044953,-476.696448,0.00020665,2]
[374449858,1753305044962,-840.06856235,0.00020665,2]
[374449860,1753305044972,-160.0,0.00020665,2]
[374449862,1753305044982,-160.0,0.00020665,2]
[374449864,1753305044991,-480.0,0.00020667,2]
[374449866,1753305045001,-616.717,0.00020735,2]
[374449868,1753305045010,-891.21,0.00020744,2]
[374449870,1753305045019,-460.0,0.00020744,2]
[374449872,1753305045028,-460.0,0.00020744,2]
[374449874,1753305045037,-686.53,0.00020744,2]
[374449876,1753305045047,-253.4,0.00020744,2]
[374449878,1753305045057,-460.0,0.00020744,2]
[374449880,1753305045067,-460.0,0.00020744,2]
[374449882,1753305045076,-250.64,0.00020744,2]
[374449884,1753305045084,-460.0,0.00020744,2]
[374449886,1753305045093,-1581.5,0.00020745,2]
[374449888,1753305045102,-460.0,0.00020745,2]
[374449889,1753305045111,-460.0,0.00020745,2]
[374449891,1753305045121,-1064.07,0.00020745,2]
[374449893,1753305045131,-460.0,0.00020745,2]
[374449895,1753305045140,-460.0,0.00020746,2]
[374449897,1753305045149,-460.0,0.00020746,2]
[374449899,1753305045159,-460.0,0.00020748,2]
[374449901,1753305045169,-1156.51,0.00020749,2]
[374449903,1753305045180,-460.0,0.00020749,2]
[374449905,1753305045189,-608.29,0.00020749,2]
[374449907,1753305045199,-470.68,0.00020749,2]
[374449909,1753305045209,-501.58,0.00020749,2]
[374449911,1753305045222,-460.0,0.00020749,2]
[374449913,1753305045231,-753.03,0.00020749,2]
[374449915,1753305045241,-460.0,0.00020751,2]
[374449917,1753305045251,-260.0,0.00020875,2]
[374449919,1753305045260,-1600.82623515,0.00020925,2]
[374449921,1753305045270,-151.0,0.00020945,2]
[374449923,1753305045279,-225.79571833,0.00020945,2]
[374449925,1753305045289,-151.0,0.00020945,2]
[374449927,1753305045299,-215.0738,0.00020945,2]
[374449929,1753305045308,-150.0,0.00020973,2]
[374449931,1753305045319,-891.21,0.00021018,2]
[374449933,1753305045329,-460.0,0.00021018,2]
[374449935,1753305045339,-686.53,0.00021018,2]
[374449937,1753305045348,-460.0,0.00021018,2]
[374449939,1753305045358,-1581.5,0.00021019,2]
[374449941,1753305045368,-460.0,0.00021019,2]
[374449943,1753305045377,-460.0,0.00021019,2]
[374449945,1753305045386,-1064.07,0.00021019,2]
[374449947,1753305045396,-460.0,0.00021019,2]
[374449949,1753305045408,-460.0,0.0002102,2]
[374449951,1753305045417,-460.0,0.00021022,2]
[374449953,1753305045427,-1156.51,0.00021023,2]
[374449955,1753305045436,-460.0,0.00021023,2]
[374449957,1753305045445,-608.29,0.00021023,2]
[374449959,1753305045454,-470.68,0.00021023,2]
[374449960,1753305045463,-501.58,0.00021023,2]
[374449962,1753305045478,-460.0,0.00021023,2]
[374449964,1753305045487,-753.03,0.00021023,2]
[374449966,1753305045496,-199.661913,0.00021024,2]
[374449968,1753305045506,-151.0,0.00021024,2]
[374449970,1753305045515,-151.0,0.00021024,2]
[374449972,1753305045524,-151.0,0.00021024,2]
[374449974,1753305045534,-151.0,0.00021024,2]
[374449976,1753305045543,-283.059249,0.00021024,2]
[374449978,1753305045552,-283.059249,0.00021024,2]
[374449980,1753305045562,-2122.386635,0.00021024,2]
[374449982,1753305045571,-2122.386635,0.00021024,2]
[374449984,1753305045580,-578.69,0.00021025,2]
[374449986,1753305045590,-150.0,0.000211,2]
[374449988,1753305045599,-1000.0,0.00021172,2]
[374449990,1753305045608,-461.5,0.00021286,3]
[374449992,1753305045618,-923.0,0.00021287,3]
[374449994,1753305045627,-891.21,0.00021292,2]
[374449996,1753305045636,-686.53,0.00021292,2]
[374449998,1753305045645,-460.0,0.00021292,2]
[374450000,1753305045655,-1581.5,0.00021293,2]
[374450002,1753305045664,-460.0,0.00021293,2]
[374450004,1753305045673,-460.0,0.00021293,2]
[374450006,1753305045683,-1064.07,0.00021293,2]
[374450007,1753305045692,-460.0,0.00021293,2]
[374450009,1753305045702,-460.0,0.00021294,2]
[374450011,1753305045711,-460.0,0.00021296,2]
[374450014,1753305045727,-1156.51,0.00021297,2]
[374450016,1753305045736,-460.0,0.00021297,2]
[374450018,1753305045746,-608.29,0.00021297,2]
[374450019,1753305045756,-470.68,0.00021297,2]
[374450022,1753305045766,-501.58,0.00021297,2]
[374450023,1753305045776,-428.96728884,0.00021297,2]
[374450025,1753305045785,-753.03,0.00021297,2]
[374450028,1753305045795,-360.0,0.00021423,2]
[374450030,1753305045806,-500.0,0.00021442,2]
[374450031,1753305045815,-808.49369971,0.00021519,2]
[374450033,1753305045825,-800.0,0.00021557,2]
[374450035,1753305045835,-891.21,0.00021566,2]
[374450037,1753305045844,-686.53,0.00021566,2]
[374450039,1753305045853,-460.0,0.00021566,2]
[374450041,1753305045862,-1581.5,0.00021567,2]
[374450043,1753305045872,-289.17,0.00021567,2]
[374450045,1753305045881,-460.0,0.00021567,2]
[374450047,1753305045891,-1064.07,0.00021567,2]
[374450049,1753305045900,-460.0,0.00021568,2]
[374450051,1753305045909,-460.0,0.0002157,2]
[374450053,1753305045919,-1156.51,0.00021571,2]
[374450055,1753305045928,-460.0,0.00021571,2]
[374450057,1753305045938,-608.29,0.00021571,2]
[374450059,1753305045947,-470.68,0.00021571,2]
[374450061,1753305045956,-501.58,0.00021571,2]
[374450063,1753305045965,-753.03,0.00021571,2]
[374450065,1753305045977,-640.7,0.0002162,5]
[374450067,1753305045986,-891.21,0.0002184,2]
[374450069,1753305045995,-686.53,0.0002184,2]
[374450071,1753305046005,-460.0,0.0002184,2]
[374450073,1753305046014,-1581.5,0.00021841,2]
[374450075,1753305046023,-460.0,0.00021841,2]
[374450077,1753305046032,-1064.07,0.00021841,2]
[374450079,1753305046042,-460.0,0.00021842,2]
[374450081,1753305046051,-460.0,0.00021844,2]
[374450083,1753305046060,-1156.51,0.00021845,2]
[374450085,1753305046069,-460.0,0.00021845,2]
[374450087,1753305046078,-608.29,0.00021845,2]
[374450089,1753305046088,-470.68,0.00021845,2]
[374450091,1753305046098,-501.58,0.00021845,2]
[374450093,1753305046110,-753.03,0.00021845,2]
[374450095,1753305046120,-1600.82623512,0.0002185,2]
[374450097,1753305046130,-1585.45012669,0.000219,2]
[374450099,1753305046139,-151.0,0.00021917,2]
[374450101,1753305046149,-151.0,0.00021917,2]
[374450103,1753305046158,-500.0,0.00021917,2]
[374450105,1753305046167,-500.0,0.00021917,2]
[374450107,1753305046176,-500.0,0.00021917,2]
[374450108,1753305046185,-500.0,0.00021917,2]
[374450110,1753305046194,-500.0,0.00021917,2]
[374450112,1753305046204,-500.0,0.00021917,2]
[374450114,1753305046213,-500.0,0.00021917,2]
[374450116,1753305046226,-1322.9240316,0.00021918,7]
[374450118,1753305046235,-150.0,0.00021926,2]
[374450120,1753305046246,-640.7,0.00021927,5]
[374450122,1753305046256,-460.0,0.00021971,2]
[374450124,1753305046266,-151.0,0.00022,7]
[374450127,1753305046276,-151.0,0.00022,7]
[374450128,1753305046286,-151.581617,0.00022,7]
[374450130,1753305046296,-283.059249,0.00022,7]
[374450132,1753305046305,-283.059249,0.00022,7]
[374450135,1753305046315,-2122.386635,0.00022,7]
[374450136,1753305046324,-2122.386635,0.00022,7]
[374450138,1753305046334,-153.0,0.00022,2]
[374450140,1753305046344,-648.0,0.00022007,2]
[374450143,1753305046353,-958.86593952,0.00022007,2]
[374450146,1753305046374,-1062.12253993,0.00022007,2]
[374450148,1753305046386,-136.01152055,0.00022007,2]
[374450150,1753305046395,-969.0,0.00022007,2]
[374450152,1753305046405,-800.0,0.00022011,2]
[374450154,1753305046419,-407.0,0.00022048,2]
[374450156,1753305046439,-420.288,0.00022048,2]
[374450158,1753305046448,-891.21,0.00022114,2]
[374450160,1753305046458,-686.53,0.00022114,2]